[Event "Titled Tuesday Blitz June 6 Early 2023"]
[White "Principe, Alexander"]
[Black "qx4z"]
[WhiteFideId "3804542"]
[WhiteElo "2203"]
[BlackElo "2742"]
[Result "0-1"]
[Round "3"]
[TimeControl "180+2"]
[Date "2023.06.06"]
[WhiteClock "0:00:02"]
[BlackClock "0:00:48"]
[Board "70"]

1. e4 {[%clk 0:02:57]}  e5 {[%clk 0:02:54]} 2. Nf3 {[%clk 0:02:37]}  Nc6 {[%clk 0:02:54]} 3. d4 {[%clk 0:02:37]}  exd4 {[%clk 0:02:55]} 4. Nxd4 {[%clk 0:02:38]}  Nf6 {[%clk 0:02:55]} 5. Nxc6 {[%clk 0:02:38]}  bxc6 {[%clk 0:02:56]} 6. e5 {[%clk 0:02:39]}  Qe7 {[%clk 0:02:56]} 7. Qe2 {[%clk 0:02:39]}  Nd5 {[%clk 0:02:56]} 8. c4 {[%clk 0:02:39]}  Ba6 {[%clk 0:02:57]} 9. b3 {[%clk 0:02:40]}  g6 {[%clk 0:02:57]} 10. f4 {[%clk 0:02:40]}  f6 {[%clk 0:02:42]} 11. Ba3 {[%clk 0:02:29]}  Nb4 {[%clk 0:02:35]} 12. Nc3 {[%clk 0:02:20]}  fxe5 {[%clk 0:02:32]} 13. O-O-O {[%clk 0:02:20]}  Nxa2+ {[%clk 0:02:31]} 14. Qxa2 {[%clk 0:02:06]}  Qxa3+ {[%clk 0:02:31]} 15. Qxa3 {[%clk 0:02:06]}  Bxa3+ {[%clk 0:02:31]} 16. Kc2 {[%clk 0:02:07]}  Bb7 {[%clk 0:02:26]} 17. fxe5 {[%clk 0:02:06]}  Rf8 {[%clk 0:02:19]} 18. Ne4 {[%clk 0:02:04]}  Be7 {[%clk 0:02:18]} 19. Bd3 {[%clk 0:01:45]}  c5 {[%clk 0:02:14]} 20. Rhf1 {[%clk 0:01:40]}  O-O-O {[%clk 0:01:51]} 21. g4 {[%clk 0:01:36]}  Bxe4 {[%clk 0:01:35]} 22. Bxe4 {[%clk 0:01:36]}  Bg5 {[%clk 0:01:35]} 23. Bd5 {[%clk 0:00:42]}  Rfe8 {[%clk 0:01:04]} 24. Ra1 {[%clk 0:00:30]}  c6 {[%clk 0:00:59]} 25. Bf3 {[%clk 0:00:21]}  Kb7 {[%clk 0:00:55]} 26. Rae1 {[%clk 0:00:15]}  Re6 {[%clk 0:00:52]} 27. Re2 {[%clk 0:00:13]}  Rde8 {[%clk 0:00:52]} 28. Rfe1 {[%clk 0:00:12]}  Bf4 {[%clk 0:00:52]} 29. h4 {[%clk 0:00:09]}  Bg3 {[%clk 0:00:47]} 30. h5 {[%clk 0:00:10]}  Bxe1 {[%clk 0:00:47]} 31. Rxe1 {[%clk 0:00:05]}  Rxe5 {[%clk 0:00:48]} 32. Rd1 {[%clk 0:00:06]}  Rf8 {[%clk 0:00:47]} 33. Rxd7+ {[%clk 0:00:02]}  Kb6 {[%clk 0:00:48]} 34. Bxc6 {[%clk 0:00:01]}  Kxc6 {[%clk 0:00:48]} 35. Rxa7 {[%clk 0:00:02]}  Rf2+ {[%clk 0:00:48]} 0-1


[Site "https://www.chess.com"]

[Event "Titled Tuesday Blitz June 6 Early 2023"]
[White "Sanhueza, Cristian"]
[Black "Koshulyan, Egor A."]
[WhiteFideId "116815"]
[BlackFideId "24237000"]
[WhiteElo "2174"]
[BlackElo "2216"]
[Result "0-1"]
[Round "3"]
[TimeControl "180+2"]
[Date "2023.06.06"]
[WhiteClock "0:00:02"]
[BlackClock "0:00:14"]
[Board "74"]

1. e4 {[%clk 0:03:00]}  c5 {[%clk 0:02:59]} 2. Nf3 {[%clk 0:03:00]}  Nc6 {[%clk 0:02:47]} 3. d4 {[%clk 0:03:00]}  cxd4 {[%clk 0:02:47]} 4. Nxd4 {[%clk 0:03:01]}  Nf6 {[%clk 0:02:48]} 5. Nc3 {[%clk 0:03:02]}  e5 {[%clk 0:02:48]} 6. Ndb5 {[%clk 0:03:02]}  d6 {[%clk 0:02:49]} 7. Bg5 {[%clk 0:03:02]}  a6 {[%clk 0:02:49]} 8. Na3 {[%clk 0:03:03]}  Be6 {[%clk 0:02:49]} 9. Nc4 {[%clk 0:03:01]}  Rb8 {[%clk 0:02:49]} 10. Bxf6 {[%clk 0:02:58]}  Qxf6 {[%clk 0:02:46]} 11. Nxd6+ {[%clk 0:02:56]}  Bxd6 {[%clk 0:02:43]} 12. Qxd6 {[%clk 0:02:57]}  Rd8 {[%clk 0:02:43]} 13. Qa3 {[%clk 0:02:55]}  Nd4 {[%clk 0:02:42]} 14. Bd3 {[%clk 0:02:55]}  Qg5 {[%clk 0:02:42]} 15. Kf1 {[%clk 0:02:29]}  f6 {[%clk 0:02:18]} 16. Qb4 {[%clk 0:01:53]}  Rd7 {[%clk 0:02:16]} 17. Nd5 {[%clk 0:01:49]}  Nc6 {[%clk 0:02:00]} 18. Qc5 {[%clk 0:01:35]}  Kf7 {[%clk 0:01:53]} 19. h4 {[%clk 0:01:31]}  Qg4 {[%clk 0:01:53]} 20. Rh3 {[%clk 0:01:23]}  Rhd8 {[%clk 0:01:47]} 21. Kg1 {[%clk 0:01:13]}  Nd4 {[%clk 0:01:38]} 22. c3 {[%clk 0:00:56]}  Ne2+ {[%clk 0:01:21]} 23. Bxe2 {[%clk 0:00:56]}  Qxe2 {[%clk 0:01:22]} 24. Re3 {[%clk 0:00:57]}  Qxb2 {[%clk 0:01:22]} 25. Rae1 {[%clk 0:00:49]}  Bxd5 {[%clk 0:01:20]} 26. exd5 {[%clk 0:00:48]}  Rxd5 {[%clk 0:01:20]} 27. Qc7+ {[%clk 0:00:40]}  R8d7 {[%clk 0:01:19]} 28. Qc8 {[%clk 0:00:41]}  Rd1 {[%clk 0:01:04]} 29. Rxd1 {[%clk 0:00:23]}  Rxd1+ {[%clk 0:01:05]} 30. Kh2 {[%clk 0:00:24]}  Qb6 {[%clk 0:00:34]} 31. Rg3 {[%clk 0:00:18]}  Rd8 {[%clk 0:00:28]} 32. Qc4+ {[%clk 0:00:16]}  Kf8 {[%clk 0:00:27]} 33. h5 {[%clk 0:00:13]}  Qc6 {[%clk 0:00:21]} 34. Qb4+ {[%clk 0:00:12]}  Kf7 {[%clk 0:00:20]} 35. Qg4 {[%clk 0:00:12]}  Rg8 {[%clk 0:00:18]} 36. Rd3 {[%clk 0:00:08]}  Ke7 {[%clk 0:00:14]} 37. Qb4+ {[%clk 0:00:07]}  Ke8 {[%clk 0:00:14]} 38. Rd6 {[%clk 0:00:06]}  Qc7 {[%clk 0:00:15]} 39. Re6+ {[%clk 0:00:06]}  Kd8 {[%clk 0:00:15]} 40. c4 {[%clk 0:00:02]}  Kc8 {[%clk 0:00:14]} 41. g3 {[%clk 0:00:01]}  Rd8 {[%clk 0:00:14]} 42. Re7 {[%clk 0:00:01]}  Qc6 {[%clk 0:00:14]} 43. Rf7 {[%clk 0:00:01]}  g6 {[%clk 0:00:13]} 44. Rxh7 {[%clk 0:00:01]}  gxh5 {[%clk 0:00:13]} 45. Rxh5 {[%clk 0:00:02]}  Kb8 {[%clk 0:00:10]} 46. Rh7 {[%clk 0:00:02]}  Rd1 {[%clk 0:00:10]} 47. g4 {[%clk 0:00:01]}  Rh1+ {[%clk 0:00:09]} 48. Kg3 {[%clk 0:00:02]}  Rxh7 {[%clk 0:00:10]} 49. Qf8+ {[%clk 0:00:02]}  Ka7 {[%clk 0:00:10]} 50. Qg8 {[%clk 0:00:03]}  Rd7 {[%clk 0:00:10]} 51. Qf8 {[%clk 0:00:03]}  Qd6 {[%clk 0:00:11]} 52. Qe8 {[%clk 0:00:03]}  e4+ {[%clk 0:00:11]} 53. Kg2 {[%clk 0:00:03]}  Qc6 {[%clk 0:00:11]} 54. Qf8 {[%clk 0:00:03]}  e3+ {[%clk 0:00:12]} 55. f3 {[%clk 0:00:04]}  Rd2+ {[%clk 0:00:13]} 56. Kg3 {[%clk 0:00:04]}  e2 {[%clk 0:00:14]} 57. Qe7 {[%clk 0:00:03]}  Qd6+ {[%clk 0:00:14]} 58. Kf2 {[%clk 0:00:02]}  Qxe7 {[%clk 0:00:14]} 0-1


[Site "https://www.chess.com"]

[Event "Titled Tuesday Blitz June 6 Early 2023"]
[White "Dinu, Dumitru-Daniel"]
[Black "Wagner, Dennis"]
[WhiteFideId "1208403"]
[BlackFideId "24650684"]
[WhiteElo "2240"]
[BlackElo "2478"]
[Result "0-1"]
[Round "3"]
[TimeControl "180+2"]
[Date "2023.06.06"]
[WhiteClock "0:00:10"]
[BlackClock "0:00:16"]
[Board "78"]

1. e4 {[%clk 0:03:00]}  e5 {[%clk 0:02:59]} 2. Nf3 {[%clk 0:03:00]}  Nc6 {[%clk 0:02:59]} 3. Bb5 {[%clk 0:03:00]}  a6 {[%clk 0:02:58]} 4. Ba4 {[%clk 0:03:00]}  Bc5 {[%clk 0:02:54]} 5. O-O {[%clk 0:02:58]}  Nge7 {[%clk 0:02:53]} 6. c3 {[%clk 0:02:56]}  Ba7 {[%clk 0:02:43]} 7. d4 {[%clk 0:02:54]}  Ng6 {[%clk 0:02:37]} 8. Bxc6 {[%clk 0:02:51]}  dxc6 {[%clk 0:02:35]} 9. dxe5 {[%clk 0:02:50]}  Qxd1 {[%clk 0:02:29]} 10. Rxd1 {[%clk 0:02:51]}  Bg4 {[%clk 0:02:29]} 11. Re1 {[%clk 0:02:11]}  Bxf3 {[%clk 0:02:26]} 12. gxf3 {[%clk 0:02:12]}  Nxe5 {[%clk 0:02:26]} 13. Kg2 {[%clk 0:02:09]}  Nd3 {[%clk 0:02:24]} 14. Rd1 {[%clk 0:02:07]}  O-O-O {[%clk 0:02:20]} 15. Na3 {[%clk 0:01:52]}  Nxf2 {[%clk 0:01:36]} 16. Rxd8+ {[%clk 0:01:48]}  Rxd8 {[%clk 0:01:37]} 17. Bg5 {[%clk 0:01:46]}  Rd6 {[%clk 0:01:31]} 18. Bh4 {[%clk 0:01:04]}  Rd2 {[%clk 0:01:01]} 19. Nc4 {[%clk 0:01:02]}  Rc2 {[%clk 0:01:01]} 20. Kf1 {[%clk 0:00:42]}  Nd3 {[%clk 0:00:58]} 21. Rd1 {[%clk 0:00:38]}  Rxh2 {[%clk 0:00:46]} 22. Rxd3 {[%clk 0:00:36]}  Rxh4 {[%clk 0:00:46]} 23. Ne5 {[%clk 0:00:34]}  Rf4 {[%clk 0:00:39]} 24. Kg2 {[%clk 0:00:28]}  h5 {[%clk 0:00:37]} 25. Kg3 {[%clk 0:00:27]}  g5 {[%clk 0:00:38]} 26. Kg2 {[%clk 0:00:19]}  Bc5 {[%clk 0:00:37]} 27. b4 {[%clk 0:00:19]}  Bd6 {[%clk 0:00:37]} 28. Nc4 {[%clk 0:00:19]}  Kd7 {[%clk 0:00:33]} 29. Ne3 {[%clk 0:00:10]}  Ke6 {[%clk 0:00:32]} 30. Nf5 {[%clk 0:00:10]}  Ke5 {[%clk 0:00:21]} 31. c4 {[%clk 0:00:04]}  Bxb4 {[%clk 0:00:14]} 32. Rd8 {[%clk 0:00:04]}  g4 {[%clk 0:00:13]} 33. Re8+ {[%clk 0:00:04]}  Kf6 {[%clk 0:00:13]} 34. fxg4 {[%clk 0:00:03]}  Rxg4+ {[%clk 0:00:12]} 35. Kf3 {[%clk 0:00:03]}  Bd6 {[%clk 0:00:10]} 36. Ne3 {[%clk 0:00:02]}  Rg3+ {[%clk 0:00:09]} 37. Kf2 {[%clk 0:00:03]}  Rh3 {[%clk 0:00:09]} 38. Nf5 {[%clk 0:00:02]}  Bc5+ {[%clk 0:00:09]} 39. Kg2 {[%clk 0:00:02]}  Ra3 {[%clk 0:00:10]} 40. Rc8 {[%clk 0:00:02]}  Rxa2+ {[%clk 0:00:10]} 41. Kh3 {[%clk 0:00:03]}  Ra3+ {[%clk 0:00:10]} 42. Kh4 {[%clk 0:00:03]}  Bb6 {[%clk 0:00:10]} 43. Kxh5 {[%clk 0:00:03]}  Ke5 {[%clk 0:00:10]} 44. Kg4 {[%clk 0:00:04]}  Kxe4 {[%clk 0:00:11]} 45. Re8+ {[%clk 0:00:04]}  Kd3 {[%clk 0:00:11]} 46. Re7 {[%clk 0:00:04]}  Kxc4 {[%clk 0:00:11]} 47. Rxf7 {[%clk 0:00:05]}  a5 {[%clk 0:00:11]} 48. Kf4 {[%clk 0:00:05]}  Rd3 {[%clk 0:00:11]} 49. Ke4 {[%clk 0:00:05]}  a4 {[%clk 0:00:11]} 50. Rf8 {[%clk 0:00:03]}  a3 {[%clk 0:00:10]} 51. Ra8 {[%clk 0:00:04]}  Rb3 {[%clk 0:00:09]} 52. Ng7 {[%clk 0:00:02]}  Kb4 {[%clk 0:00:09]} 53. Ne6 {[%clk 0:00:01]}  Re3+ {[%clk 0:00:09]} 54. Kf5 {[%clk 0:00:02]}  Rxe6 {[%clk 0:00:10]} 55. Kxe6 {[%clk 0:00:02]}  Ba5 {[%clk 0:00:09]} 56. Rb8 {[%clk 0:00:02]}  b5 {[%clk 0:00:09]} 57. Rh8 {[%clk 0:00:02]}  a2 {[%clk 0:00:10]} 58. Rh1 {[%clk 0:00:02]}  Ka3 {[%clk 0:00:10]} 59. Kd7 {[%clk 0:00:02]}  b4 {[%clk 0:00:11]} 60. Kxc6 {[%clk 0:00:02]}  b3 {[%clk 0:00:11]} 61. Kc5 {[%clk 0:00:02]}  Bc3 {[%clk 0:00:11]} 62. Kc4 {[%clk 0:00:02]}  a1=Q {[%clk 0:00:12]} 63. Rxa1+ {[%clk 0:00:01]}  Bxa1 {[%clk 0:00:13]} 64. Kd3 {[%clk 0:00:01]}  Ka2 {[%clk 0:00:13]} 65. Kd2 {[%clk 0:00:02]}  Be5 {[%clk 0:00:13]} 66. Kd3 {[%clk 0:00:02]}  Bd6 {[%clk 0:00:14]} 67. Kd4 {[%clk 0:00:03]}  b2 {[%clk 0:00:15]} 68. Kd5 {[%clk 0:00:04]}  b1=Q {[%clk 0:00:15]} 69. Kc6 {[%clk 0:00:05]}  Qe4+ {[%clk 0:00:16]} 70. Kd7 {[%clk 0:00:06]}  Qd5 {[%clk 0:00:16]} 71. Kc8 {[%clk 0:00:07]}  Qc6 {[%clk 0:00:16]} 72. Kb8 {[%clk 0:00:08]}  Qd7 {[%clk 0:00:16]} 73. Kb7 {[%clk 0:00:08]}  c5+ {[%clk 0:00:16]} 74. Ka6 {[%clk 0:00:09]}  Qc6+ {[%clk 0:00:16]} 75. Ka5 {[%clk 0:00:10]}  Bc7# {[%clk 0:00:16]} 0-1


[Site "https://www.chess.com"]

[Event "Titled Tuesday Blitz June 6 Early 2023"]
[White "Pham, Le Thao Nguyen"]
[Black "Goryachkina, Aleksandra"]
[WhiteFideId "12401226"]
[BlackFideId "4147103"]
[WhiteElo "2286"]
[BlackElo "2471"]
[Result "1-0"]
[Round "3"]
[TimeControl "180+2"]
[Date "2023.06.06"]
[WhiteClock "0:00:04"]
[BlackClock "0:00:02"]
[Board "80"]

1. d4 {[%clk 0:02:57]}  d5 {[%clk 0:02:59]} 2. c4 {[%clk 0:02:56]}  e6 {[%clk 0:02:58]} 3. Nf3 {[%clk 0:02:55]}  h6 {[%clk 0:02:57]} 4. Nbd2 {[%clk 0:01:59]}  Nf6 {[%clk 0:02:54]} 5. g3 {[%clk 0:01:58]}  Bd6 {[%clk 0:02:49]} 6. Bg2 {[%clk 0:01:58]}  O-O {[%clk 0:02:49]} 7. O-O {[%clk 0:01:59]}  Nc6 {[%clk 0:02:37]} 8. a3 {[%clk 0:01:37]}  Re8 {[%clk 0:02:36]} 9. Qc2 {[%clk 0:01:25]}  Bd7 {[%clk 0:02:06]} 10. Rd1 {[%clk 0:01:13]}  dxc4 {[%clk 0:01:37]} 11. Nxc4 {[%clk 0:01:10]}  Rc8 {[%clk 0:01:19]} 12. e4 {[%clk 0:01:01]}  Bf8 {[%clk 0:01:17]} 13. h3 {[%clk 0:00:49]}  g6 {[%clk 0:01:02]} 14. Be3 {[%clk 0:00:39]}  Bg7 {[%clk 0:01:00]} 15. Rac1 {[%clk 0:00:36]}  Qe7 {[%clk 0:00:47]} 16. d5 {[%clk 0:00:34]}  exd5 {[%clk 0:00:47]} 17. exd5 {[%clk 0:00:35]}  Nb8 {[%clk 0:00:47]} 18. Bxa7 {[%clk 0:00:32]}  Bf5 {[%clk 0:00:39]} 19. Qb3 {[%clk 0:00:29]}  b6 {[%clk 0:00:28]} 20. d6 {[%clk 0:00:20]}  cxd6 {[%clk 0:00:28]} 21. Bxb6 {[%clk 0:00:19]}  d5 {[%clk 0:00:24]} 22. Ne3 {[%clk 0:00:18]}  Be4 {[%clk 0:00:23]} 23. Bd4 {[%clk 0:00:16]}  Nc6 {[%clk 0:00:04]} 24. Bc5 {[%clk 0:00:10]}  Qe6 {[%clk 0:00:01]} 25. Nd4 {[%clk 0:00:10]}  Nxd4 {[%clk 0:00:01]} 26. Bxd4 {[%clk 0:00:11]}  Rxc1 {[%clk 0:00:01]} 27. Rxc1 {[%clk 0:00:07]}  Bxg2 {[%clk 0:00:01]} 28. Nxg2 {[%clk 0:00:07]}  Qxh3 {[%clk 0:00:01]} 29. Bxf6 {[%clk 0:00:06]}  Bxf6 {[%clk 0:00:02]} 30. Qxd5 {[%clk 0:00:05]}  Bxb2 {[%clk 0:00:02]} 31. Rc7 {[%clk 0:00:05]}  Rf8 {[%clk 0:00:02]} 32. a4 {[%clk 0:00:04]} 1-0


[Site "https://www.chess.com"]

[Event "Titled Tuesday Blitz June 6 Early 2023"]
[White "Domingo Nunez, Ruben"]
[Black "Aarav Dengla"]
[WhiteFideId "22245570"]
[BlackFideId "45059756"]
[WhiteElo "2404"]
[BlackElo "2288"]
[Result "0-1"]
[Round "3"]
[TimeControl "180+2"]
[Date "2023.06.06"]
[WhiteClock "0:00:01"]
[BlackClock "0:00:07"]
[Board "81"]

1. c4 {[%clk 0:02:59]}  e6 {[%clk 0:02:56]} 2. Nf3 {[%clk 0:02:58]}  d5 {[%clk 0:02:55]} 3. b3 {[%clk 0:02:58]}  Nf6 {[%clk 0:02:54]} 4. g3 {[%clk 0:02:57]}  c5 {[%clk 0:02:51]} 5. Bg2 {[%clk 0:02:57]}  Nc6 {[%clk 0:02:50]} 6. O-O {[%clk 0:02:57]}  Be7 {[%clk 0:02:50]} 7. Nc3 {[%clk 0:02:58]}  d4 {[%clk 0:02:50]} 8. Na4 {[%clk 0:02:57]}  e5 {[%clk 0:02:51]} 9. e3 {[%clk 0:02:52]}  e4 {[%clk 0:02:48]} 10. Ng5 {[%clk 0:02:52]}  Bf5 {[%clk 0:02:48]} 11. f3 {[%clk 0:02:50]}  dxe3 {[%clk 0:02:37]} 12. dxe3 {[%clk 0:02:31]}  Qxd1 {[%clk 0:02:35]} 13. Rxd1 {[%clk 0:02:32]}  h6 {[%clk 0:02:30]} 14. Nxe4 {[%clk 0:02:14]}  Nxe4 {[%clk 0:02:28]} 15. fxe4 {[%clk 0:02:15]}  Bg4 {[%clk 0:02:29]} 16. Rd2 {[%clk 0:02:15]}  Ne5 {[%clk 0:02:19]} 17. Kf2 {[%clk 0:02:14]}  Be6 {[%clk 0:02:11]} 18. h3 {[%clk 0:02:13]}  O-O {[%clk 0:02:02]} 19. Bb2 {[%clk 0:02:13]}  f6 {[%clk 0:02:02]} 20. Rad1 {[%clk 0:02:12]}  a6 {[%clk 0:01:54]} 21. Nb6 {[%clk 0:02:12]}  Rae8 {[%clk 0:01:54]} 22. Nd5 {[%clk 0:01:22]}  Bd8 {[%clk 0:01:45]} 23. Nf4 {[%clk 0:01:19]}  Ba5 {[%clk 0:01:45]} 24. Rd6 {[%clk 0:01:15]}  Bc8 {[%clk 0:01:41]} 25. Ke2 {[%clk 0:01:01]}  Bc7 {[%clk 0:01:39]} 26. R6d2 {[%clk 0:00:59]}  Nc6 {[%clk 0:01:24]} 27. Kf2 {[%clk 0:00:52]}  Rf7 {[%clk 0:01:13]} 28. Bf3 {[%clk 0:00:51]}  Rd8 {[%clk 0:01:00]} 29. Rd5 {[%clk 0:00:46]}  Bb6 {[%clk 0:00:33]} 30. Ba3 {[%clk 0:00:37]}  Rff8 {[%clk 0:00:28]} 31. Rxd8 {[%clk 0:00:21]}  Rxd8 {[%clk 0:00:19]} 32. Rxd8+ {[%clk 0:00:21]}  Bxd8 {[%clk 0:00:16]} 33. Bxc5 {[%clk 0:00:21]}  Ne5 {[%clk 0:00:16]} 34. Kg2 {[%clk 0:00:13]}  g5 {[%clk 0:00:13]} 35. Nd5 {[%clk 0:00:13]}  Bxh3+ {[%clk 0:00:13]} 36. Kxh3 {[%clk 0:00:13]}  Nxf3 {[%clk 0:00:14]} 37. Kg4 {[%clk 0:00:13]}  Ne5+ {[%clk 0:00:13]} 38. Kf5 {[%clk 0:00:14]}  Kf7 {[%clk 0:00:14]} 39. Bd4 {[%clk 0:00:13]}  Nd7 {[%clk 0:00:14]} 40. e5 {[%clk 0:00:14]}  fxe5 {[%clk 0:00:13]} 41. Bxe5 {[%clk 0:00:14]}  b5 {[%clk 0:00:10]} 42. e4 {[%clk 0:00:13]}  bxc4 {[%clk 0:00:10]} 43. bxc4 {[%clk 0:00:14]}  Nc5 {[%clk 0:00:10]} 44. Bd6 {[%clk 0:00:11]}  Ne6 {[%clk 0:00:10]} 45. c5 {[%clk 0:00:10]}  Nd4+ {[%clk 0:00:09]} 46. Kg4 {[%clk 0:00:10]}  Nc6 {[%clk 0:00:08]} 47. Kh5 {[%clk 0:00:06]}  Kg7 {[%clk 0:00:08]} 48. e5 {[%clk 0:00:06]}  Nd4 {[%clk 0:00:08]} 49. Kg4 {[%clk 0:00:02]}  Kg6 {[%clk 0:00:08]} 50. Kh3 {[%clk 0:00:03]}  h5 {[%clk 0:00:08]} 51. Kg2 {[%clk 0:00:04]}  Kf5 {[%clk 0:00:08]} 52. Ne3+ {[%clk 0:00:04]}  Ke6 {[%clk 0:00:08]} 53. Nc4 {[%clk 0:00:03]}  Kd5 {[%clk 0:00:08]} 54. Ne3+ {[%clk 0:00:03]}  Kc6 {[%clk 0:00:07]} 55. Nf1 {[%clk 0:00:02]}  Ne6 {[%clk 0:00:07]} 56. Nd2 {[%clk 0:00:03]}  Nxc5 {[%clk 0:00:08]} 57. Nf3 {[%clk 0:00:03]}  Ne6 {[%clk 0:00:08]} 58. Nd2 {[%clk 0:00:03]}  Kd5 {[%clk 0:00:08]} 59. Nb3 {[%clk 0:00:03]}  Ke4 {[%clk 0:00:08]} 60. Nd2+ {[%clk 0:00:03]}  Kd3 {[%clk 0:00:07]} 61. Nf3 {[%clk 0:00:03]}  Ba5 {[%clk 0:00:08]} 62. Nh2 {[%clk 0:00:03]}  Bc3 {[%clk 0:00:07]} 63. g4 {[%clk 0:00:03]}  h4 {[%clk 0:00:07]} 64. Nf3 {[%clk 0:00:04]}  Ke4 {[%clk 0:00:08]} 65. Ng1 {[%clk 0:00:03]}  Bxe5 {[%clk 0:00:07]} 66. Bb4 {[%clk 0:00:04]}  Kf4 {[%clk 0:00:07]} 67. Nf3 {[%clk 0:00:02]}  Bd4 {[%clk 0:00:05]} 68. Nh2 {[%clk 0:00:01]}  Ke3 {[%clk 0:00:05]} 69. Bd6 {[%clk 0:00:01]}  Nf4+ {[%clk 0:00:04]} 70. Kh1 {[%clk 0:00:02]}  Ne2 {[%clk 0:00:05]} 71. Kg2 {[%clk 0:00:02]}  Ke4 {[%clk 0:00:05]} 72. Kf1 {[%clk 0:00:02]}  Be3 {[%clk 0:00:06]} 73. Kxe2 {[%clk 0:00:02]}  Bf4 {[%clk 0:00:06]} 74. Bxf4 {[%clk 0:00:02]}  Kxf4 {[%clk 0:00:07]} 75. Kf2 {[%clk 0:00:03]}  a5 {[%clk 0:00:07]} 76. Kg2 {[%clk 0:00:03]}  a4 {[%clk 0:00:08]} 77. Kh3 {[%clk 0:00:04]}  Ke3 {[%clk 0:00:08]} 78. a3 {[%clk 0:00:04]}  Kf2 {[%clk 0:00:07]} 79. Nf3 {[%clk 0:00:01]}  Kxf3 {[%clk 0:00:07]} 0-1


[Site "https://www.chess.com"]

[Event "Titled Tuesday Blitz June 6 Early 2023"]
[White "Gil Alba, Hector Luis"]
[Black "Shuvalova, Polina"]
[WhiteFideId "3504670"]
[BlackFideId "24171760"]
[WhiteElo "2331"]
[BlackElo "2281"]
[Result "1/2-1/2"]
[Round "3"]
[TimeControl "180+2"]
[Date "2023.06.06"]
[WhiteClock "0:01:09"]
[BlackClock "0:00:24"]
[Board "82"]

1. e4 {[%clk 0:03:00]}  c6 {[%clk 0:02:55]} 2. d4 {[%clk 0:03:00]}  d5 {[%clk 0:02:55]} 3. f3 {[%clk 0:03:00]}  g6 {[%clk 0:02:54]} 4. Nc3 {[%clk 0:03:00]}  Bg7 {[%clk 0:02:54]} 5. exd5 {[%clk 0:02:56]}  cxd5 {[%clk 0:02:54]} 6. Bb5+ {[%clk 0:02:56]}  Nc6 {[%clk 0:02:54]} 7. Nge2 {[%clk 0:02:56]}  Nf6 {[%clk 0:02:49]} 8. O-O {[%clk 0:02:54]}  O-O {[%clk 0:02:50]} 9. Be3 {[%clk 0:02:41]}  a6 {[%clk 0:02:38]} 10. Bxc6 {[%clk 0:02:39]}  bxc6 {[%clk 0:02:29]} 11. Qd2 {[%clk 0:02:40]}  Rb8 {[%clk 0:02:22]} 12. b3 {[%clk 0:02:39]}  Re8 {[%clk 0:02:19]} 13. Bf4 {[%clk 0:02:38]}  Ra8 {[%clk 0:02:08]} 14. Na4 {[%clk 0:02:37]}  Nd7 {[%clk 0:02:07]} 15. Rae1 {[%clk 0:02:29]}  a5 {[%clk 0:02:07]} 16. Bh6 {[%clk 0:02:16]}  Bh8 {[%clk 0:02:01]} 17. f4 {[%clk 0:02:11]}  Nf6 {[%clk 0:01:51]} 18. f5 {[%clk 0:02:10]}  Ne4 {[%clk 0:01:40]} 19. Qe3 {[%clk 0:02:06]}  Bxf5 {[%clk 0:01:38]} 20. Rxf5 {[%clk 0:02:02]}  gxf5 {[%clk 0:01:38]} 21. Ng3 {[%clk 0:02:02]}  Qd6 {[%clk 0:01:26]} 22. Nxe4 {[%clk 0:01:47]}  dxe4 {[%clk 0:01:21]} 23. c3 {[%clk 0:01:47]}  Qg6 {[%clk 0:01:20]} 24. Rf1 {[%clk 0:01:46]}  e6 {[%clk 0:01:20]} 25. Nc5 {[%clk 0:01:42]}  Bg7 {[%clk 0:01:16]} 26. Bxg7 {[%clk 0:01:38]}  Kxg7 {[%clk 0:01:16]} 27. Nd7 {[%clk 0:01:37]}  Kh8 {[%clk 0:01:15]} 28. Ne5 {[%clk 0:01:36]}  Qg7 {[%clk 0:01:15]} 29. Nxc6 {[%clk 0:01:33]}  Rg8 {[%clk 0:01:15]} 30. g3 {[%clk 0:01:32]}  a4 {[%clk 0:01:15]} 31. b4 {[%clk 0:01:31]}  Rac8 {[%clk 0:01:15]} 32. b5 {[%clk 0:01:31]}  Rc7 {[%clk 0:01:09]} 33. c4 {[%clk 0:01:30]}  Rgc8 {[%clk 0:01:06]} 34. d5 {[%clk 0:01:30]}  exd5 {[%clk 0:01:02]} 35. cxd5 {[%clk 0:01:30]}  Qg6 {[%clk 0:00:59]} 36. Qf4 {[%clk 0:01:25]}  Rb7 {[%clk 0:00:50]} 37. d6 {[%clk 0:01:17]}  Rxb5 {[%clk 0:00:41]} 38. Ne7 {[%clk 0:01:15]}  Qe6 {[%clk 0:00:37]} 39. Nxc8 {[%clk 0:01:14]}  Qxc8 {[%clk 0:00:35]} 40. Qg5 {[%clk 0:01:14]}  Rd5 {[%clk 0:00:26]} 41. Qf6+ {[%clk 0:01:13]}  Kg8 {[%clk 0:00:26]} 42. Qg5+ {[%clk 0:01:13]}  Kh8 {[%clk 0:00:24]} 43. Qf6+ {[%clk 0:01:13]}  Kg8 {[%clk 0:00:25]} 44. Qg5+ {[%clk 0:01:09]}  Kh8 {[%clk 0:00:24]} 1/2-1/2


[Site "https://www.chess.com"]

[Event "Titled Tuesday Blitz June 6 Early 2023"]
[White "Lorenzo De La Riva, Lazaro"]
[Black "Belov, Alexei"]
[WhiteFideId "2268809"]
[BlackFideId "4128206"]
[WhiteElo "2294"]
[BlackElo "2650"]
[Result "1-0"]
[Round "3"]
[TimeControl "180+2"]
[Date "2023.06.06"]
[WhiteClock "0:00:46"]
[BlackClock "0:00:03"]
[Board "83"]

1. c4 {[%clk 0:03:00]}  e6 {[%clk 0:02:59]} 2. Nf3 {[%clk 0:02:55]}  d5 {[%clk 0:02:59]} 3. g3 {[%clk 0:02:52]}  Nf6 {[%clk 0:02:59]} 4. Bg2 {[%clk 0:02:52]}  Be7 {[%clk 0:03:00]} 5. O-O {[%clk 0:02:51]}  O-O {[%clk 0:03:00]} 6. b3 {[%clk 0:02:51]}  c5 {[%clk 0:02:59]} 7. e3 {[%clk 0:02:49]}  dxc4 {[%clk 0:02:56]} 8. bxc4 {[%clk 0:02:48]}  Nc6 {[%clk 0:02:56]} 9. Qe2 {[%clk 0:02:47]}  Qc7 {[%clk 0:02:56]} 10. Nc3 {[%clk 0:02:46]}  a6 {[%clk 0:02:56]} 11. Bb2 {[%clk 0:02:42]}  b6 {[%clk 0:02:54]} 12. Rac1 {[%clk 0:02:41]}  Bb7 {[%clk 0:02:53]} 13. Rfd1 {[%clk 0:02:40]}  Rac8 {[%clk 0:02:48]} 14. Ne1 {[%clk 0:02:35]}  Rfd8 {[%clk 0:02:46]} 15. f4 {[%clk 0:02:34]}  Na5 {[%clk 0:02:35]} 16. d3 {[%clk 0:02:31]}  Bxg2 {[%clk 0:02:23]} 17. Qxg2 {[%clk 0:02:32]}  Rb8 {[%clk 0:02:06]} 18. g4 {[%clk 0:02:30]}  b5 {[%clk 0:02:04]} 19. g5 {[%clk 0:02:30]}  Ne8 {[%clk 0:02:03]} 20. Ne4 {[%clk 0:02:24]}  bxc4 {[%clk 0:01:59]} 21. Nf6+ {[%clk 0:02:16]}  Kh8 {[%clk 0:01:28]} 22. Nxe8 {[%clk 0:02:04]}  Rxe8 {[%clk 0:01:26]} 23. dxc4 {[%clk 0:02:04]}  f6 {[%clk 0:01:11]} 24. Ba1 {[%clk 0:01:54]}  Red8 {[%clk 0:01:09]} 25. Rxd8+ {[%clk 0:01:46]}  Rxd8 {[%clk 0:01:08]} 26. Qe4 {[%clk 0:01:38]}  Qc6 {[%clk 0:01:03]} 27. Qxc6 {[%clk 0:01:37]}  Nxc6 {[%clk 0:01:03]} 28. gxf6 {[%clk 0:01:36]}  Bxf6 {[%clk 0:01:00]} 29. Bxf6 {[%clk 0:01:35]}  gxf6 {[%clk 0:01:01]} 30. Nf3 {[%clk 0:01:34]}  Rd3 {[%clk 0:00:56]} 31. Kf2 {[%clk 0:01:35]}  Ra3 {[%clk 0:00:55]} 32. Rd1 {[%clk 0:01:30]}  Rxa2+ {[%clk 0:00:55]} 33. Kg3 {[%clk 0:01:31]}  Re2 {[%clk 0:00:50]} 34. Rd6 {[%clk 0:01:30]}  Nb4 {[%clk 0:00:48]} 35. Rxe6 {[%clk 0:01:30]}  a5 {[%clk 0:00:45]} 36. Nh4 {[%clk 0:01:27]}  Kg8 {[%clk 0:00:40]} 37. Nf5 {[%clk 0:01:25]}  Kf7 {[%clk 0:00:40]} 38. Re7+ {[%clk 0:01:14]}  Kf8 {[%clk 0:00:39]} 39. Ra7 {[%clk 0:01:09]}  Nc2 {[%clk 0:00:33]} 40. Kf3 {[%clk 0:01:09]}  Rxh2 {[%clk 0:00:33]} 41. Rxa5 {[%clk 0:01:09]}  Ne1+ {[%clk 0:00:31]} 42. Ke4 {[%clk 0:01:09]}  h5 {[%clk 0:00:20]} 43. Ra7 {[%clk 0:01:05]}  h4 {[%clk 0:00:19]} 44. Kd5 {[%clk 0:01:05]}  Rd2+ {[%clk 0:00:14]} 45. Ke6 {[%clk 0:01:05]}  Rd8 {[%clk 0:00:14]} 46. Kxf6 {[%clk 0:01:01]}  Ke8 {[%clk 0:00:10]} 47. Rh7 {[%clk 0:00:58]}  Nf3 {[%clk 0:00:07]} 48. e4 {[%clk 0:00:49]}  Rd1 {[%clk 0:00:03]} 49. e5 {[%clk 0:00:46]} 1-0


[Site "https://www.chess.com"]